fUST/lending_fUST_20250907
["ID","MTS","AMOUNT","RATE_DAILY","PERIOD"]
[383942843,1757188247185,-648.0,0.000148,2]
[383942844,1757188247194,-160.0,0.00015,2]
[383942845,1757188247203,-480.0,0.00015068,2]
[383942846,1757188247212,-480.0,0.00015068,2]
[383942847,1757188247221,-480.0,0.00015068,2]
[383942848,1757188247230,-751.25,0.00015068,2]
[383942849,1757188247239,-480.0,0.00015068,2]
[383942850,1757188247248,-480.0,0.00015068,2]
[383942851,1757188247257,-480.0,0.00015068,2]
[383942852,1757188247266,-480.0,0.00015068,2]
[383942853,1757188247276,-480.0,0.00015068,2]
[383942854,1757188247285,-480.0,0.00015068,2]
[383942855,1757188247295,-480.0,0.00015068,2]
[383942856,1757188247305,-480.0,0.00015068,2]
[383942857,1757188247314,-480.0,0.00015068,2]
[383942858,1757188247324,-505.83,0.00015068,2]
[383942859,1757188247334,-556.38,0.00015068,2]
[383942860,1757188247344,-566.54,0.00015068,2]
[383942861,1757188247353,-481.35,0.00015068,2]
[383942862,1757188247363,-480.0,0.00015068,2]
[383942863,1757188247372,-480.0,0.00015068,2]
[383942864,1757188247381,-529.67,0.00015068,2]
[383942865,1757188247390,-509.94,0.00015068,2]
[383942866,1757188247399,-480.0,0.00015068,2]
[383942867,1757188247409,-480.0,0.00015068,2]
[383942868,1757188247418,-480.0,0.00015068,2]
[383942869,1757188247426,-480.0,0.00015068,2]
[383942870,1757188247435,-480.0,0.00015068,2]
[383942871,1757188247445,-705.55,0.00015068,2]
[383942872,1757188247454,-480.0,0.00015068,2]
[383942873,1757188247463,-480.0,0.00015068,2]
[383942874,1757188247472,-569.90937948,0.00015068,2]
[383942875,1757188247481,-3041.38,0.00015068,2]
[383942876,1757188247492,-480.0,0.00015068,2]
[383942877,1757188247503,-480.0,0.00015068,2]
[383942878,1757188247512,-7226.88,0.00015068,2]
[383942879,1757188247521,-553.89,0.00015068,2]
[383942880,1757188247530,-480.0,0.00015068,2]
[383942881,1757188247539,-594.3,0.00015068,2]
[383942882,1757188247549,-556.91,0.00015068,2]
[383942883,1757188247558,-480.0,0.00015068,2]
[383942884,1757188247568,-480.0,0.00015068,2]
[383942885,1757188247577,-602.49,0.00015068,2]
[383942886,1757188247587,-480.0,0.00015068,2]
[383942887,1757188247596,-740.07,0.00015068,2]
[383942888,1757188247608,-1229.74,0.00015068,2]
[383942889,1757188247618,-1289.77,0.00015068,2]
[383942890,1757188247627,-480.0,0.00015068,2]
[383942891,1757188247637,-2872.85,0.00015068,2]
[383942892,1757188247647,-480.0,0.00015068,2]
[383942893,1757188247656,-480.0,0.00015068,2]
[383942894,1757188247666,-480.0,0.00015068,2]
[383942895,1757188247676,-597.95,0.00015068,2]
[383942896,1757188247684,-480.0,0.00015068,2]
[383942897,1757188247694,-480.0,0.00015068,2]
[383942898,1757188247703,-480.0,0.00015068,2]
[383942899,1757188247713,-480.0,0.00015068,2]
[383942900,1757188247723,-1596.78,0.00015068,2]
[383942901,1757188247733,-5759.89,0.00015068,2]
[383942902,1757188247742,-2769.71,0.00015068,2]
[383942903,1757188247752,-480.0,0.00015068,2]
[383942904,1757188247761,-480.0,0.00015068,2]
[383942905,1757188247771,-2038.35,0.00015068,2]
[383942906,1757188247781,-480.0,0.00015068,2]
[383942907,1757188247790,-1191.28,0.00015068,2]
[383942908,1757188247800,-480.0,0.00015068,2]
[383942909,1757188247809,-1777.18,0.00015068,2]
[383942910,1757188247818,-568.44,0.00015068,2]
[383942911,1757188247828,-806.04,0.00015068,2]
[383942912,1757188247837,-975.38,0.00015068,2]
[383942913,1757188247846,-480.0,0.00015068,2]
[383942914,1757188247856,-480.0,0.00015068,2]
[383942915,1757188247865,-480.0,0.00015068,2]
[383942916,1757188247874,-1149.06,0.00015068,2]
[383942917,1757188247884,-480.0,0.00015068,2]
[383942918,1757188247895,-480.0,0.00015068,2]
[383942919,1757188247904,-480.0,0.00015068,2]
[383942920,1757188247913,-480.0,0.00015068,2]
[383942921,1757188247923,-480.0,0.00015068,2]
[383942922,1757188247932,-539.15,0.00015068,2]
[383942923,1757188247941,-480.0,0.00015068,2]
[383942924,1757188247951,-480.0,0.00015068,2]
[383942925,1757188247960,-1423.76,0.00015068,2]
[383942926,1757188247970,-595.52,0.00015068,2]
[383942927,1757188247979,-733.19,0.00015068,2]
[383942928,1757188247988,-1509.09,0.00015068,2]
[383942929,1757188247997,-184.94377879,0.00015068,2]
[383942930,1757188248006,-1413.15,0.00015068,2]
[383942931,1757188248016,-480.0,0.00015068,2]
[383942932,1757188248025,-1542.88,0.00015068,2]
[383942933,1757188248034,-480.0,0.00015068,2]
[383942934,1757188248045,-480.0,0.00015068,2]
[383942935,1757188248054,-480.0,0.00015068,2]
[383942936,1757188248063,-480.0,0.00015068,2]
[383942937,1757188248073,-1635.19,0.00015068,2]
[383942938,1757188248081,-1024.43,0.00015068,2]
[383942939,1757188248091,-514.21,0.00015068,2]
[383942940,1757188248101,-776.49,0.00015068,2]
[383942941,1757188248110,-480.0,0.00015068,2]
[383942942,1757188248120,-511.14,0.00015068,2]
[383942943,1757188248130,-1000.0,0.00015112,2]
[383942944,1757188248140,-2000.0,0.000152,2]
[383942945,1757188248149,-500.0,0.00015227,2]
[383942946,1757188248159,-500.0,0.00015229,2]
[383942947,1757188248168,-500.0,0.00015229,2]
[383942948,1757188248178,-500.0,0.00015242,2]
[383942949,1757188248188,-500.0,0.00015242,2]
[383942950,1757188248198,-500.0,0.00015242,2]
[383942951,1757188248207,-500.0,0.00015242,2]
[383942952,1757188248218,-500.0,0.00015247,2]
[383942953,1757188248227,-480.0,0.00015342,2]
[383942954,1757188248237,-480.0,0.00015342,2]
[383942955,1757188248247,-480.0,0.00015342,2]
[383942956,1757188248257,-751.25,0.00015342,2]
[383942957,1757188248267,-480.0,0.00015342,2]
[383942958,1757188248277,-390.25668871,0.00015342,2]
[383942959,1757188248287,-480.0,0.00015342,2]
[383942960,1757188248296,-480.0,0.00015342,2]
[383942961,1757188248305,-480.0,0.00015342,2]
[383942962,1757188248314,-511.00832648,0.00015342,2]
[383942963,1757188248324,-480.0,0.00015342,2]
[383942964,1757188248333,-480.0,0.00015342,2]
[383942965,1757188248343,-480.0,0.00015342,2]
[383942966,1757188248353,-505.83,0.00015342,2]
[383942967,1757188248363,-556.38,0.00015342,2]
[383942968,1757188248373,-566.54,0.00015342,2]
[383942969,1757188248383,-481.35,0.00015342,2]
[383942970,1757188248394,-480.0,0.00015342,2]
[383942971,1757188248404,-480.0,0.00015342,2]
[383942972,1757188248414,-529.67,0.00015342,2]
[383942973,1757188248423,-509.94,0.00015342,2]
[383942974,1757188248433,-480.0,0.00015342,2]
[383942975,1757188248442,-480.0,0.00015342,2]
[383942976,1757188248452,-480.0,0.00015342,2]
[383942977,1757188248461,-480.0,0.00015342,2]
[383942978,1757188248470,-480.0,0.00015342,2]
[383942979,1757188248480,-705.55,0.00015342,2]
[383942980,1757188248489,-480.0,0.00015342,2]
[383942981,1757188248498,-480.0,0.00015342,2]
[383942982,1757188248508,-3041.38,0.00015342,2]
[383942983,1757188248517,-480.0,0.00015342,2]
[383942984,1757188248526,-480.0,0.00015342,2]
[383942985,1757188248536,-7226.88,0.00015342,2]
[383942986,1757188248545,-553.89,0.00015342,2]
[383942987,1757188248555,-480.0,0.00015342,2]
[383942988,1757188248565,-594.3,0.00015342,2]
[383942989,1757188248574,-556.91,0.00015342,2]
[383942990,1757188248584,-480.0,0.00015342,2]
[383942991,1757188248594,-480.0,0.00015342,2]
[383942992,1757188248608,-602.49,0.00015342,2]
[383942993,1757188248617,-480.0,0.00015342,2]
[383942994,1757188248627,-740.07,0.00015342,2]
[383942995,1757188248637,-1229.74,0.00015342,2]
[383942996,1757188248647,-1289.77,0.00015342,2]
[383942997,1757188248657,-480.0,0.00015342,2]
[383942998,1757188248667,-2872.85,0.00015342,2]
[383942999,1757188248677,-480.0,0.00015342,2]
[383943000,1757188248688,-480.0,0.00015342,2]
[383943001,1757188248698,-480.0,0.00015342,2]
[383943002,1757188248708,-597.95,0.00015342,2]
[383943003,1757188248719,-480.0,0.00015342,2]
[383943004,1757188248728,-480.0,0.00015342,2]
[383943005,1757188248738,-480.0,0.00015342,2]
[383943006,1757188248747,-480.0,0.00015342,2]
[383943007,1757188248758,-1596.78,0.00015342,2]
[383943008,1757188248767,-5759.89,0.00015342,2]
[383943009,1757188248777,-2769.71,0.00015342,2]
[383943010,1757188248786,-350.35750671,0.00015342,2]
[383943011,1757188248797,-480.0,0.00015342,2]
[383943012,1757188248806,-2038.35,0.00015342,2]
[383943013,1757188248816,-480.0,0.00015342,2]
[383943014,1757188248827,-1191.28,0.00015342,2]
[383943015,1757188248836,-480.0,0.00015342,2]
[383943016,1757188248846,-1777.18,0.00015342,2]
[383943017,1757188248856,-568.44,0.00015342,2]
[383943018,1757188248865,-806.04,0.00015342,2]
[383943019,1757188248875,-975.38,0.00015342,2]
[383943020,1757188248885,-480.0,0.00015342,2]
[383943021,1757188248895,-480.0,0.00015342,2]
[383943022,1757188248904,-480.0,0.00015342,2]
[383943023,1757188248914,-1149.06,0.00015342,2]
[383943024,1757188248924,-480.0,0.00015342,2]
[383943025,1757188248934,-480.0,0.00015342,2]
[383943026,1757188248944,-480.0,0.00015342,2]
[383943027,1757188248954,-480.0,0.00015342,2]
[383943028,1757188248964,-480.0,0.00015342,2]
[383943029,1757188248974,-539.15,0.00015342,2]
[383943030,1757188248983,-480.0,0.00015342,2]
[383943031,1757188248993,-480.0,0.00015342,2]
[383943032,1757188249004,-1423.76,0.00015342,2]
[383943033,1757188249013,-595.52,0.00015342,2]
[383943034,1757188249023,-733.19,0.00015342,2]
[383943035,1757188249033,-1509.09,0.00015342,2]
[383943036,1757188249042,-1413.15,0.00015342,2]
[383943037,1757188249052,-480.0,0.00015342,2]
[383943038,1757188249061,-1542.88,0.00015342,2]
[383943039,1757188249070,-480.0,0.00015342,2]
[383943040,1757188249080,-480.0,0.00015342,2]
[383943041,1757188249090,-480.0,0.00015342,2]
[383943042,1757188249100,-480.0,0.00015342,2]
[383943043,1757188249109,-1635.19,0.00015342,2]
[383943044,1757188249119,-1024.43,0.00015342,2]
[383943045,1757188249128,-514.21,0.00015342,2]
[383943046,1757188249138,-776.49,0.00015342,2]
[383943047,1757188249147,-480.0,0.00015342,2]
[383943048,1757188249156,-511.14,0.00015342,2]
[383943049,1757188249166,-500.0,0.00015368,2]
[383943050,1757188249176,-720.0,0.00015368,2]
[383943051,1757188249185,-3000.0,0.0001541,2]
[383943052,1757188249194,-2234.46378664,0.00015616,3]
[383943053,1757188249203,-480.0,0.00015616,2]
[383943054,1757188249213,-480.0,0.00015616,2]
[383943055,1757188249222,-480.0,0.00015616,2]
[383943056,1757188249232,-751.25,0.00015616,2]
[383943057,1757188249242,-480.0,0.00015616,2]
[383943058,1757188249252,-480.0,0.00015616,2]
[383943059,1757188249261,-480.0,0.00015616,2]
[383943060,1757188249413,-480.0,0.00015616,2]
[383943061,1757188249423,-480.0,0.00015616,2]
[383943062,1757188249433,-259.68102501,0.00015616,2]
[383943063,1757188249442,-480.0,0.00015616,2]
[383943064,1757188249452,-505.83,0.00015616,2]
[383943065,1757188249461,-556.38,0.00015616,2]
[383943066,1757188249471,-566.54,0.00015616,2]
[383943067,1757188249480,-481.35,0.00015616,2]
[383943068,1757188249490,-480.0,0.00015616,2]
[383943069,1757188249499,-480.0,0.00015616,2]
[383943070,1757188249509,-529.67,0.00015616,2]
[383943071,1757188249519,-509.94,0.00015616,2]
[383943072,1757188249528,-480.0,0.00015616,2]
[383943073,1757188249547,-480.0,0.00015616,2]
[383943074,1757188249557,-379.55879146,0.00015616,2]
[383943075,1757188249567,-480.0,0.00015616,2]
[383943076,1757188249576,-480.0,0.00015616,2]
[383943077,1757188249586,-705.55,0.00015616,2]
[383943078,1757188249595,-480.0,0.00015616,2]
[383943079,1757188249607,-480.0,0.00015616,2]
[383943080,1757188249617,-3041.38,0.00015616,2]
[383943081,1757188249627,-480.0,0.00015616,2]
[383943082,1757188249637,-480.0,0.00015616,2]
[383943083,1757188249647,-7226.88,0.00015616,2]
[383943084,1757188249657,-553.89,0.00015616,2]
[383943085,1757188249666,-480.0,0.00015616,2]
[383943086,1757188249676,-594.3,0.00015616,2]
[383943087,1757188249685,-556.91,0.00015616,2]
[383943088,1757188249695,-480.0,0.00015616,2]
[383943089,1757188249705,-480.0,0.00015616,2]
[383943090,1757188249715,-602.49,0.00015616,2]
[383943091,1757188249724,-480.0,0.00015616,2]
[383943092,1757188249733,-740.07,0.00015616,2]
[383943093,1757188249743,-1229.74,0.00015616,2]
[383943094,1757188249753,-1289.77,0.00015616,2]
[383943095,1757188249762,-480.0,0.00015616,2]
[383943096,1757188249771,-2872.85,0.00015616,2]
[383943097,1757188249781,-480.0,0.00015616,2]
[383943098,1757188249791,-480.0,0.00015616,2]
[383943099,1757188249801,-590.85164335,0.00015616,2]
[383943100,1757188249810,-597.95,0.00015616,2]
[383943101,1757188249820,-480.0,0.00015616,2]
[383943102,1757188249830,-480.0,0.00015616,2]
[383943103,1757188249839,-480.0,0.00015616,2]
[383943104,1757188249849,-1596.78,0.00015616,2]
[383943105,1757188249858,-5759.89,0.00015616,2]
[383943106,1757188249868,-2769.71,0.00015616,2]
[383943107,1757188249877,-480.0,0.00015616,2]
[383943108,1757188249887,-2038.35,0.00015616,2]
[383943109,1757188249896,-480.0,0.00015616,2]
[383943110,1757188249905,-1191.28,0.00015616,2]
[383943111,1757188249915,-480.0,0.00015616,2]
[383943112,1757188249924,-1777.18,0.00015616,2]
[383943113,1757188249933,-568.44,0.00015616,2]
[383943114,1757188249942,-806.04,0.00015616,2]
[383943115,1757188249952,-975.38,0.00015616,2]
[383943116,1757188249961,-480.0,0.00015616,2]
[383943117,1757188249971,-480.0,0.00015616,2]
[383943118,1757188249980,-480.0,0.00015616,2]
[383943119,1757188249990,-1149.06,0.00015616,2]
[383943120,1757188250000,-480.0,0.00015616,2]
[383943121,1757188250010,-480.0,0.00015616,2]
[383943122,1757188250019,-480.0,0.00015616,2]
[383943123,1757188250028,-480.0,0.00015616,2]
[383943124,1757188250037,-480.0,0.00015616,2]
[383943125,1757188250046,-539.15,0.00015616,2]
[383943126,1757188250056,-480.0,0.00015616,2]
[383943127,1757188250066,-480.0,0.00015616,2]
[383943128,1757188250075,-595.52,0.00015616,2]
[383943129,1757188250084,-1423.76,0.00015616,2]
[383943130,1757188250094,-733.19,0.00015616,2]
[383943131,1757188250103,-1509.09,0.00015616,2]
[383943132,1757188250113,-1413.15,0.00015616,2]
[383943133,1757188250122,-480.0,0.00015616,2]
[383943134,1757188250132,-1542.88,0.00015616,2]
[383943135,1757188250141,-480.0,0.00015616,2]
[383943136,1757188250151,-480.0,0.00015616,2]
[383943137,1757188250160,-480.0,0.00015616,2]
[383943138,1757188250170,-480.0,0.00015616,2]
[383943139,1757188250179,-1635.19,0.00015616,2]
[383943140,1757188250188,-1024.43,0.00015616,2]
[383943141,1757188250198,-514.21,0.00015616,2]
[383943142,1757188250207,-776.49,0.00015616,2]
[383943143,1757188250217,-480.0,0.00015616,2]
[383943144,1757188250226,-511.14,0.00015616,2]
[383943145,1757188250235,-1500.0,0.0001566,2]
[383943146,1757188250244,-1000.0,0.00015775,2]
[383943147,1757188250254,-1000.0,0.00015777,2]
[383943148,1757188250264,-1000.0,0.00015777,2]
[383943149,1757188250273,-1000.0,0.0001579,2]
[383943150,1757188250283,-1000.0,0.0001579,2]
[383943151,1757188250292,-1000.0,0.0001579,2]
[383943152,1757188250302,-1000.0,0.0001579,2]
[383943153,1757188250312,-160.0,0.000158,2]
[383943154,1757188250323,-480.0,0.0001589,2]
[383943155,1757188250334,-480.0,0.0001589,2]
[383943156,1757188250345,-480.0,0.0001589,2]
[383943157,1757188250354,-751.25,0.0001589,2]
[383943158,1757188250364,-480.0,0.0001589,2]
[383943159,1757188250373,-480.0,0.0001589,2]
[383943160,1757188250383,-480.0,0.0001589,2]
[383943161,1757188250393,-12500.0,0.0001589,3]
[383943162,1757188250402,-506.47896869,0.0001589,2]
[383943163,1757188250411,-480.0,0.0001589,2]
[383943164,1757188250421,-480.0,0.0001589,2]
[383943165,1757188250432,-505.83,0.0001589,2]
[383943166,1757188250442,-556.38,0.0001589,2]
[383943167,1757188250452,-566.54,0.0001589,2]
[383943168,1757188250461,-481.35,0.0001589,2]
[383943169,1757188250471,-480.0,0.0001589,2]
[383943170,1757188250480,-480.0,0.0001589,2]
[383943171,1757188250489,-529.67,0.0001589,2]
[383943172,1757188250500,-509.94,0.0001589,2]
[383943173,1757188250509,-480.0,0.0001589,2]
[383943174,1757188250518,-480.0,0.0001589,2]
[383943175,1757188250528,-480.0,0.0001589,2]
[383943176,1757188250538,-480.0,0.0001589,2]
[383943177,1757188250547,-705.55,0.0001589,2]
[383943178,1757188250556,-213.40978934,0.0001589,2]
[383943179,1757188250566,-480.0,0.0001589,2]
[383943180,1757188250575,-3041.38,0.0001589,2]
[383943181,1757188250584,-480.0,0.0001589,2]
[383943182,1757188250594,-480.0,0.0001589,2]
[383943183,1757188250603,-7226.88,0.0001589,2]
[383943184,1757188250616,-553.89,0.0001589,2]
[383943185,1757188250625,-480.0,0.0001589,2]
[383943186,1757188250634,-594.3,0.0001589,2]
[383943187,1757188250643,-556.91,0.0001589,2]
[383943188,1757188250652,-480.0,0.0001589,2]
[383943189,1757188250662,-480.0,0.0001589,2]
[383943190,1757188250671,-602.49,0.0001589,2]
[383943191,1757188250680,-480.0,0.0001589,2]
[383943192,1757188250689,-740.07,0.0001589,2]
[383943193,1757188250699,-1229.74,0.0001589,2]
[383943194,1757188250709,-1289.77,0.0001589,2]
[383943195,1757188250719,-480.0,0.0001589,2]
[383943196,1757188250728,-2872.85,0.0001589,2]
[383943197,1757188250738,-480.0,0.0001589,2]
[383943198,1757188250747,-480.0,0.0001589,2]
[383943199,1757188250756,-597.95,0.0001589,2]
[383943200,1757188250765,-480.0,0.0001589,2]
[383943201,1757188250775,-480.0,0.0001589,2]
[383943202,1757188250784,-480.0,0.0001589,2]
[383943203,1757188250794,-1596.78,0.0001589,2]
[383943204,1757188250803,-5759.89,0.0001589,2]
[383943205,1757188250813,-2769.71,0.0001589,2]
[383943206,1757188250823,-480.0,0.0001589,2]
[383943207,1757188250832,-2038.35,0.0001589,2]
[383943208,1757188250841,-480.0,0.0001589,2]
[383943209,1757188250851,-1191.28,0.0001589,2]
[383943210,1757188250860,-480.0,0.0001589,2]
[383943211,1757188250869,-1777.18,0.0001589,2]
[383943212,1757188250879,-568.44,0.0001589,2]
[383943213,1757188250889,-806.04,0.0001589,2]
[383943214,1757188250899,-975.38,0.0001589,2]
[383943215,1757188250908,-480.0,0.0001589,2]
[383943216,1757188250918,-480.0,0.0001589,2]
[383943217,1757188250927,-480.0,0.0001589,2]
[383943218,1757188250936,-1149.06,0.0001589,2]
[383943219,1757188250946,-480.0,0.0001589,2]
[383943220,1757188250958,-160.0,0.0001589,3]
[383943221,1757188250967,-480.0,0.0001589,2]
[383943222,1757188250977,-480.0,0.0001589,2]
[383943223,1757188250987,-480.0,0.0001589,2]
[383943224,1757188250996,-480.0,0.0001589,2]
[383943225,1757188251006,-539.15,0.0001589,2]
[383943226,1757188251016,-480.0,0.0001589,2]
[383943227,1757188251025,-480.0,0.0001589,2]
[383943228,1757188251035,-595.52,0.0001589,2]
[383943229,1757188251044,-1423.76,0.0001589,2]
[383943230,1757188251054,-733.19,0.0001589,2]
[383943231,1757188251064,-530.56961759,0.0001589,3]
[383943232,1757188251074,-1509.09,0.0001589,2]
[383943233,1757188251083,-1413.15,0.0001589,2]
[383943234,1757188251093,-480.0,0.0001589,2]
[383943235,1757188251102,-1542.88,0.0001589,2]
[383943236,1757188251112,-480.0,0.0001589,2]
[383943237,1757188251121,-480.0,0.0001589,2]
[383943238,1757188251131,-480.0,0.0001589,2]
[383943239,1757188251140,-480.0,0.0001589,2]
[383943240,1757188251150,-1635.19,0.0001589,2]
[383943241,1757188251159,-1024.43,0.0001589,2]
[383943242,1757188251169,-514.21,0.0001589,2]
[383943243,1757188251178,-776.49,0.0001589,2]
[383943244,1757188251188,-581.05047725,0.0001589,2]
[383943245,1757188251197,-511.14,0.0001589,2]
[383943246,1757188251207,-1000.0,0.00015916,2]
[383943247,1757188251216,-10572.35515662,0.00016,3]
[383943248,1757188251225,-417.15472785,0.00016,3]
[383943249,1757188251235,-500.0,0.00016009,2]
[383943250,1757188251244,-480.0,0.00016164,2]
[383943251,1757188251254,-480.0,0.00016164,2]
[383943252,1757188251263,-480.0,0.00016164,2]
[383943253,1757188251273,-751.25,0.00016164,2]
[383943254,1757188251282,-480.0,0.00016164,2]
[383943255,1757188251291,-480.0,0.00016164,2]
[383943256,1757188251301,-480.0,0.00016164,2]
[383943257,1757188251310,-480.0,0.00016164,2]
[383943258,1757188251319,-480.0,0.00016164,2]
[383943259,1757188251328,-505.83,0.00016164,2]
[383943260,1757188251338,-556.38,0.00016164,2]
[383943261,1757188251347,-566.54,0.00016164,2]
[383943262,1757188251358,-481.35,0.00016164,2]
[383943263,1757188251368,-480.0,0.00016164,2]
[383943264,1757188251378,-480.0,0.00016164,2]
[383943265,1757188251387,-529.67,0.00016164,2]
[383943266,1757188251397,-509.94,0.00016164,2]
[383943267,1757188251406,-480.0,0.00016164,2]
[383943268,1757188251415,-480.0,0.00016164,2]
[383943269,1757188251425,-480.0,0.00016164,2]
[383943270,1757188251434,-480.0,0.00016164,2]
[383943271,1757188251444,-705.55,0.00016164,2]
[383943272,1757188251453,-480.0,0.00016164,2]
[383943273,1757188251462,-3041.38,0.00016164,2]
[383943274,1757188251471,-480.0,0.00016164,2]
[383943275,1757188251481,-388.58831619,0.00016164,2]
[383943276,1757188251491,-7226.88,0.00016164,2]
[383943277,1757188251499,-553.89,0.00016164,2]
[383943278,1757188251509,-480.0,0.00016164,2]
[383943279,1757188251519,-594.3,0.00016164,2]
[383943280,1757188251528,-556.91,0.00016164,2]
[383943281,1757188251537,-480.0,0.00016164,2]
[383943282,1757188251546,-480.0,0.00016164,2]
[383943283,1757188251555,-602.49,0.00016164,2]
[383943284,1757188251564,-480.0,0.00016164,2]
[383943285,1757188251573,-740.07,0.00016164,2]
[383943286,1757188251582,-1229.74,0.00016164,2]
[383943287,1757188251591,-1289.77,0.00016164,2]
[383943288,1757188251600,-480.0,0.00016164,2]
[383943289,1757188251613,-2872.85,0.00016164,2]
[383943290,1757188251622,-611.35247222,0.00016164,2]
[383943291,1757188251631,-480.0,0.00016164,2]
[383943292,1757188251641,-597.95,0.00016164,2]
[383943293,1757188251650,-480.0,0.00016164,2]
[383943294,1757188251660,-480.0,0.00016164,2]
[383943295,1757188251669,-480.0,0.00016164,2]
[383943296,1757188251679,-1596.78,0.00016164,2]
[383943297,1757188251689,-5759.89,0.00016164,2]
[383943298,1757188251698,-2769.71,0.00016164,2]
[383943299,1757188251708,-480.0,0.00016164,2]
[383943300,1757188251717,-2038.35,0.00016164,2]
[383943301,1757188251727,-480.0,0.00016164,2]
[383943302,1757188251736,-1191.28,0.00016164,2]
[383943303,1757188251745,-480.0,0.00016164,2]
[383943304,1757188251755,-1777.18,0.00016164,2]
[383943305,1757188251764,-568.44,0.00016164,2]
[383943306,1757188251774,-806.04,0.00016164,2]
[383943307,1757188251785,-975.38,0.00016164,2]
[383943308,1757188251794,-480.0,0.00016164,2]
[383943309,1757188251804,-480.0,0.00016164,2]
[383943310,1757188251815,-480.0,0.00016164,2]
[383943311,1757188251824,-1149.06,0.00016164,2]
[383943312,1757188251834,-480.0,0.00016164,2]
[383943313,1757188251844,-480.0,0.00016164,2]
[383943314,1757188251853,-480.0,0.00016164,2]
[383943315,1757188251863,-480.0,0.00016164,2]
[383943316,1757188251873,-480.0,0.00016164,2]
[383943317,1757188251882,-539.15,0.00016164,2]
[383943318,1757188251892,-480.0,0.00016164,2]
[383943319,1757188251902,-480.0,0.00016164,2]
[383943320,1757188251911,-595.52,0.00016164,2]
[383943321,1757188251921,-1423.76,0.00016164,2]
[383943322,1757188251930,-733.19,0.00016164,2]
[383943323,1757188251941,-1509.09,0.00016164,2]
[383943324,1757188251950,-1413.15,0.00016164,2]
[383943325,1757188251960,-480.0,0.00016164,2]
[383943326,1757188251969,-1542.88,0.00016164,2]
[383943327,1757188251980,-480.0,0.00016164,2]
[383943328,1757188251990,-221.51965591,0.00016164,2]
[383943329,1757188251999,-480.0,0.00016164,2]
[383943330,1757188252009,-480.0,0.00016164,2]
[383943331,1757188252018,-1635.19,0.00016164,2]
[383943332,1757188252028,-1024.43,0.00016164,2]
[383943333,1757188252038,-514.21,0.00016164,2]
[383943334,1757188252047,-776.49,0.00016164,2]
[383943335,1757188252057,-511.14,0.00016164,2]
[383943336,1757188252066,-2000.0,0.000162,2]
[383943337,1757188252075,-2000.0,0.00016208,2]
[383943338,1757188252085,-1500.0,0.00016323,2]
[383943339,1757188252095,-1500.0,0.00016325,2]
[383943340,1757188252104,-1500.0,0.00016325,2]
[383943341,1757188252114,-1500.0,0.00016338,2]
[383943342,1757188252124,-1500.0,0.00016338,2]